Cogmind - Beta 17 @@@ ROGUE MODE // 2026.07.13 @ 18:16:55 Player: kareds Result: Destroyed by H-61 Shepherd with Heavy Assault Cannon Performance ------------- Evolutions (2) 1000 Regions Visited (3) 600 Robots Destroyed (17) 85 Value Destroyed (515) 515 Prototype IDs (0) 0 Alien Tech Used (0) 0 Bonus (0) 0 TOTAL SCORE: 2200 Bonus ------- None Cogmind --------- Core Integrity 0/550 Matter 300/300 Energy 99/100 System Corruption 0% Temperature Cool (0) Movement Core (50) Location -8/Materials Parts ------- > --- POWER (1) -------- (None) > --- PROPULSION (4) --- (None) > --- UTILITY (4) ------ (None) > --- WEAPON (2) ------- Axe > --- INVENTORY (5) ---- Small Storage Unit Hardened Light Armor Plating Flak Cannon Dirty Datajack (20) Piercing Trap Peak State ------------ > --- POWER ------------ Nuclear Core > --- PROPULSION ------- Light Treads Advanced Treads Aluminum Leg Aluminum Leg > --- UTILITY ---------- Actuator Array Hardened Light Armor Plating Hardened Medium Armor Plating Reflective Plating > --- WEAPON ----------- Scythe Axe > --- INVENTORY -------- Small Storage Unit Hardened Light Armor Plating Flak Cannon Dirty Datajack Piercing Trap [Rating: 27] Favorites ----------- Power Ion Engine Engine Ion Engine Power Core Nuclear Core Propulsion Light Treads Treads Light Treads Leg Aluminum Leg Hover Unit Improved Hover Unit Utility Small Storage Unit Device Actuator Array Storage Small Storage Unit Processor Advanced Targeting Computer Hackware Hacking Suite Protection Medium Armor Plating Weapon Assault Rifle Energy Gun Medium Laser Ballistic Gun Assault Rifle Special Weapon Mining Laser Slashing Weapon Axe Special Melee Weapon Dirty Datajack Build | -11 -10 -10 -8 ------- Run | Yrd Mat Sub Mat Slots Evolved 4 | . . . 4 Power . | . . . . Propulsion 2 | . . . 2 Utility 2 | . . . 2 Weapon . | . . . . Parts Attached 40 | 8 1 11 20 Power 6 | 1 . 2 3 Engine 5 | 1 . 2 2 Core 1 | . . . 1 Reactor . | . . . . Propulsion 12 | 2 . 4 6 Treads 5 | 2 . . 3 Leg 3 | . . . 3 Wheel . | . . . . Hover 4 | . . 4 . Flight . | . . . . Utility 13 | 3 . 3 7 Device 4 | 2 . 1 1 Storage 1 | 1 . . . Processor 1 | . . . 1 Hackware 1 | . . . 1 Protection 6 | . . 2 4 Artifact . | . . . . Weapon 9 | 2 1 2 4 Energy Gun 4 | 1 . 1 2 Energy Cannon . | . . . . Ballistic Gun 1 | 1 . . . Ballistic Cannon . | . . . . Launcher . | . . . . Special Weapon 1 | . 1 . . Impact Weapon . | . . . . Slashing Weapon 2 | . . . 2 Piercing Weapon . | . . . . Special Melee Weapon 1 | . . 1 . Unidentified Prototypes . | . . . . Parts Lost 20 | . . 9 11 Power 2 | . . 1 1 Propulsion 9 | . . 4 5 Utility 6 | . . 2 4 Weapon 3 | . . 2 1 Highest Loss Streak 10 | . . 3 10 To Critical Strikes 1 | . . . 1 Average Backups 4 | 3 6 6 3 Power . | . 1 1 . Propulsion 1 | 1 2 2 . Utility 1 | . 1 2 1 Weapon . | . 1 . . Tool/Special . | . . . . Unused Backups 7 | 1 3 . 3 Power . | . . . . Propulsion 2 | . 2 . . Utility 3 | . 1 . 2 Weapon 2 | 1 . . 1 Tool/Special . | . . . . Average Slot Usage (%) 90 | . 100 90 87 Engine 10 | . 14 12 6 Treads 14 | . 28 16 7 Leg 6 | . . . 15 Hover 7 | . . 9 9 Device 7 | . 14 7 5 Storage 7 | . 14 12 . Processor 1 | . . . 3 Hackware 2 | . . . 4 Protection 9 | . . 5 16 Energy Gun 6 | . 14 6 3 Ballistic Gun 4 | . 7 9 . Special Weapon 3 | . 7 6 . Slashing Weapon 6 | . . . 14 Special Melee Weapon 1 | . . 3 . Peak Build Rating 27 | 9 8 17 27 Average Rating 13 | 7 7 10 21 On Entrance 6 | . 7 8 10 Avg Prop Armor Cover (%) 9 | . . . 9 Naked Turns . | . . . . Heaviest Build 34 | 15 15 22 34 Greatest Support 42 | 40 40 40 42 Greatest Overweight (x) 3 | 1 . 2 3 Average Overweight (x) . | . . . . Largest Inventory Capacity 8 | 8 8 8 5 Average Capacity 6 | 7 8 7 5 Most Carried 8 | 6 8 8 5 Average Carried 5 | 3 6 6 4 Final Capacity 8 | 8 8 5 5 Final Carried 8 | 5 8 5 5 Class Distribution -------------------- 79% | Mutant 15% | Gladiator 4% | Scavenger-Gladiator Dominant Class ---------------- Mutant | -10/Materials Mutant | -10/Subcaves Mutant | -8/Materials Resources | -11 -10 -10 -8 ----------- Run | Yrd Mat Sub Mat Matter Collected 784 | 313 . 241 230 Remotely . | . . . . Salvage Created 630 | 148 . 166 316 Parts 40 | 11 . 12 17 Haulers Intercepted . | . . . . Recyclers Shooed 1 | 1 . . . Parts Field Recycled . | . . . . Retrieved Matter . | . . . . Parts Self-Destructed 12 | . . 12 . Prevented . | . . . . Parts Restored . | . . . . Kills | -11 -10 -10 -8 ------- Run | Yrd Mat Sub Mat Combat Hostiles Destroyed 13 | . . 7 6 Melee 4 | . . . 4 Guns 8 | . . 6 2 Cannons 1 | . . 1 . Classes Destroyed 7 | 2 . 2 3 Tunneler 3 | 3 . . . Recycler 1 | 1 . . . Swarmer 3 | . . 3 . Grunt 2 | . . . 2 Sentry 2 | . . . 2 Specialist 2 | . . . 2 Subdweller 4 | . . 4 . Best Kill Streak 3 | 2 . 3 2 Combat Bots Only 3 | . . 3 2 Max Kills in Single Turn 1 | 1 . 1 1 Gunslinging . | . . . . Exploded . | . . . . Melee 1 | . . . 1 Uniques/NPCs Destroyed . | . . . . Combat | -11 -10 -10 -8 -------- Run | Yrd Mat Sub Mat Hostile Shots Fired 235 | . 2 99 134 Missed 76 | . 2 40 34 Hits 159 | . . 59 100 Projectile 159 | . . 59 100 Critical Strikes 9 | . . 4 5 Damage Taken 3018 | . . 1130 1888 Core 764 | . . 200 564 Absorbed by Shields . | . . . . Core Remaining (%) 60 | 100 . 20 . Volleys Fired 71 | 11 3 51 6 Largest 2 | 2 1 2 2 Hottest 125 | 70 100 120 125 Shots Fired 92 | 22 3 55 12 Gun 85 | 22 . 51 12 Cannon . | . . . . Launcher . | . . . . Special 7 | . 3 4 . Kinetic 58 | 11 . 47 . Thermal 34 | 11 3 8 12 Explosive . | . . . . Electromagnetic . | . . . . Robot Hit Streak 13 | 3 . 13 7 Robot Miss Streak 2 | 2 . 2 2 Penetration Max . | . . . . Secondary Targets 1 | . . . 1 Max Gunslinging Chain 1 | . . . 1 Shots Hit Robots 92 | 12 . 42 38 Core Hits 31 | 4 . 11 16 Critical Kills . | . . . . Critical Parts Destroyed . | . . . . Critical Strikes 5 | 1 . . 4 Burn 1 | 1 . . . Sever 4 | . . . 4 Melee Attacks 32 | . . . 32 Impact . | . . . . Slashing 32 | . . . 32 Piercing . | . . . . Sneak Attacks 1 | . . . 1 Combat Hostiles . | . . . . Follow-up Attacks 6 | . . . 6 Damage Inflicted 1444 | 159 . 382 903 Guns 679 | 159 . 310 210 Cannons . | . . . . Explosions . | . . . . Melee 693 | . . . 693 Ramming . | . . . . Kinetic 302 | 59 . 243 . Thermal 449 | 100 . 139 210 Explosive . | . . . . Electromagnetic . | . . . . Impact . | . . . . Slashing 693 | . . . 693 Piercing . | . . . . Highest Corruption . | . . . . Average Corruption . | . . . . Corruption Purged . | . . . . Corruption Blocked . | . . . . Overload Shots . | . . . . Overflow Damage . | . . . . Projectiles . | . . . . Explosions . | . . . . Melee . | . . . . Knockbacks . | . . . . Impact . | . . . . Kinetic . | . . . . Secondary . | . . . . Self-Inflicted Damage . | . . . . Shots . | . . . . Rammed 1 | 1 . . . Targets Rammed 1 | 1 . . . Kicked . | . . . . Crushed . | . . . . Highest Temperature 432 | 18 60 . 432 Average Temperature 105 | 10 30 . 218 Received Heat Transfer 273 | . . 156 117 Siege Activations . | . . . . Martial Activations . | . . . . Shielding Activations . | . . . . Robots Disrupted . | . . . . Combat Hostiles . | . . . . Robots Corrupted . | . . . . Combat Hostiles . | . . . . Parts Fried . | . . . . Impact Corruptions . | . . . . Robots Melted . | . . . . Combat Hostiles . | . . . . Parts Melted . | . . . . Heat Transferred 855 | 370 . 225 260 Parts Sabotaged . | . . . . Parts Stolen . | . . . . Parts Stripped . | . . . . Power Chain Reactions . | . . . . Alert | -11 -10 -10 -8 ------- Run | Yrd Mat Sub Mat Maximum Alert Level . | . . . . Low Security (%) 100 | 100 100 . 100 Level 1 . | . . . . Level 2 . | . . . . Level 3 . | . . . . Level 4 . | . . . . Level 5 . | . . . . High Security . | . . . . Max Security . | . . . . Peak Influence 73 | 5 6 . 73 Initial 23 | . . . 23 Average 10 | . . . 18 Influence Increases 294 | 20 9 70 195 Destroy 0b10 Robot/C 180 | . . 60 120 Destroy 0b10 Robot/NC 20 | 20 . . . Destroy Leader 40 | . . 10 30 Successful Hack 6 | . 6 . . Destroy Structure 3 | . 3 . . Lose Combat Pursuer 45 | . . . 45 Influence Decreases 294 | 20 9 24 241 Entered New Map 23 | . . . 23 Time Decay 254 | 20 9 24 201 Lost Part 17 | . . . 17 Squads Dispatched 2 | . . . 2 Investigation . | . . . . Extermination . | . . . . Reinforcement 2 | . . . 2 Assault . | . . . . Garrison . | . . . . Intercept . | . . . . Searches Triggered . | . . . . Construction Impeded . | . . . . Haulers Reinforced . | . . . . Active Scanning Responses . | . . . . Cargo Convoy Interrupts . | . . . . Stealth | -11 -10 -10 -8 --------- Run | Yrd Mat Sub Mat Distress Signals . | . . . . Communications Jammed . | . . . . Distress Signals . | . . . . Times Spotted 28 | . 2 10 16 Peak Tracking Total 6 | . 2 4 6 Tactical Retreats 2 | . . . 2 Traps | -11 -10 -10 -8 ------- Run | Yrd Mat Sub Mat Traps Triggered 1 | . . 1 . Indirectly . | . . . . Trap Hack Attempts . | . . . . Triggered . | . . . . Disarmed . | . . . . Reprogrammed . | . . . . Reused . | . . . . Traps Extracted . | . . . . Installed . | . . . . Triggered . | . . . . Most Traps Carried 1 | . . 1 1 Machines | -11 -10 -10 -8 ---------- Run | Yrd Mat Sub Mat Machines Disabled . | . . . . Max in Single Turn . | . . . . Machines Repaired . | . . . . Machines Dismantled . | . . . . Machines Sabotaged . | . . . . Overloaded Fab Kills . | . . . . Hacking | -11 -10 -10 -8 --------- Run | Yrd Mat Sub Mat Machines Accessed 5 | . 1 . 4 Terminals 5 | . 1 . 4 Fabricators . | . . . . Repair Stations . | . . . . Recycling Units . | . . . . Scanalyzers . | . . . . Garrison Access . | . . . . Total Hacks 11 | . 2 . 9 Successful 3 | . 1 . 2 Failed 8 | . 1 . 7 Catastrophic . | . . . . Database Lockouts . | . . . . Manual 7 | . 2 . 5 Terminals 11 | . 2 . 9 Fabricators . | . . . . Repair Stations . | . . . . Recycling Units . | . . . . Scanalyzers . | . . . . Garrison Access . | . . . . Terminal Hacks 2 | . . . 2 Dispatch Records 1 | . . . 1 Investigation Status 1 | . . . 1 Fabricator Hacks . | . . . . Repair Station Hacks . | . . . . Recycling Unit Hacks . | . . . . Scanalyzer . | . . . . Garrison Access Hacks . | . . . . Unauthorized Hacks 1 | . 1 . . Terminals 1 | . 1 . . Operators 1 | . 1 . . Fabricators . | . . . . Repair Stations . | . . . . Recycling Units . | . . . . Scanalyzers . | . . . . Garrison Access . | . . . . Data Cores Recovered . | . . . . Used . | . . . . Hacking Detections 5 | . 1 . 4 Full Trace Events . | . . . . Feedback Events . | . . . . Feedback Blocked . | . . . . Robot Schematics Acquired . | . . . . Robots Built . | . . . . Authchips . | . . . . Time . | . . . . Total Robot Build Rating . | . . . . Part Schematics Acquired . | . . . . Parts Built . | . . . . Authchips . | . . . . Time . | . . . . Total Part Build Rating . | . . . . Part Studies Acquired . | . . . . Parts Repaired . | . . . . Time . | . . . . Parts Recycled . | . . . . Recycled Matter . | . . . . Retrieved Matter . | . . . . Retrieved Components . | . . . . Parts Scanalyzed . | . . . . Part Schematics Acquired . | . . . . Parts Damaged . | . . . . Bothacking | -11 -10 -10 -8 ------------ Run | Yrd Mat Sub Mat Used RIF Installer . | . . . . Robots Hacked . | . . . . Non-combat . | . . . . Combat . | . . . . Robot Hacks Applied . | . . . . Relay Couplers Released . | . . . . Fabnet Peak Effective % . | . . . . Robots Rewired . | . . . . Allies Hacked . | . . . . Hacks Repelled . | . . . . Allies | -11 -10 -10 -8 -------- Run | Yrd Mat Sub Mat Total Allies . | . . . . Largest Group . | . . . . Highest-Rated Group . | . . . . Highest-Rated Ally . | . . . . Total Orders . | . . . . Ally Attacks . | . . . . Total Damage . | . . . . Kills . | . . . . Allies Corrupted . | . . . . Allies Melted . | . . . . Intel | -11 -10 -10 -8 ------- Run | Yrd Mat Sub Mat Active Infowar (turns) 575 | 112 231 232 . Optics 171 | . . 171 . Terrain 104 | 104 . . . Seismic 300 | 8 231 61 . Robot Analysis Total . | . . . . Derelict Logs Recovered 1 | . . 1 . Drone Launches . | . . . . Drone Recoveries . | . . . . Exploration | -11 -10 -10 -8 ------------- Run | Yrd Mat Sub Mat Turns Passed 1498 | 200 231 504 563 Spaces Moved 832 | 95 131 294 312 Core 7 | 5 . . 2 Treads 385 | 90 131 120 44 Legs 210 | . . . 210 Wheels . | . . . . Hover 230 | . . 174 56 Flight . | . . . . Fastest Speed 50 | 50 160 56 50 Average Speed 136 | 155 160 122 133 Slowest Speed 240 | 160 160 180 240 Overloaded Moves . | . . . . Propulsion Burnouts . | . . . . Robots Hopped . | . . . . Potential Cave-ins . | . . . . Cave-ins Triggered . | . . . . Exploration Rate (%) 17 | 4 12 28 25 Regions Visited 3 Branch Regions 1 Pre-discovered Areas . | . . . . Known Exits Taken . | . . . . Unknown Exits Taken 3 | 1 1 1 . Scrap Searched . | . . . . Spaces Dug 3 | . 3 . . Terrain Destroyed 3 | . 3 . . Melee . | . . . . Projectile 3 | . 3 . . AOE . | . . . . Terrain Rammed . | . . . . Walls Destroyed . | . . . . Machines Disabled . | . . . . Actions | -11 -10 -10 -8 --------- Run | Yrd Mat Sub Mat Total 1041 | 121 145 372 403 Wait 26 | . . 8 18 Move 830 | 95 130 293 312 Hop . | . . . . Pick Up 19 | 6 7 2 4 Fast Attach 19 | 7 . 4 8 Attach 8 | . . 6 2 Detach 4 | . . 3 1 Swap 20 | 1 1 3 15 Drop 19 | 1 4 2 12 Fire 71 | 11 3 51 6 Melee 25 | . . . 25 Ram . | . . . . Kick . | . . . . Crush . | . . . . Escape Stasis . | . . . . Rewire . | . . . . Trap . | . . . . Miscellaneous . | . . . . Route ------- -11/Scrapyard -10/Materials -10/Subcaves -8/Materials (discovered 1 exit: [*Fac]) History --------- Turn | Location | Event 8 | -11/Scrapyard | Discovered new exit (range 16) 201 | -11/Scrapyard | Entered Materials 335 | -10/Materials | Build established: Mutant 371 | -10/Materials | Discovered new exit (range 9) 432 | -10/Materials | Entered Subcaves 433 | -10/Subcaves | Approached by a straggling Scientist 456 | -10/Subcaves | A swath of the cavern ceiling suddenly collapsed 581 | -10/Subcaves | Learned Materials terminal intel 731 | -10/Subcaves | Core integrity fell below 50% 767 | -10/Subcaves | Lost 3 parts (2n1w) 934 | -10/Subcaves | Discovered new exit (range 3) 936 | -10/Subcaves | Entered Materials 936 | -8/Materials | Evolved 4 slots: Propulsion x2, Utility x2 937 | -8/Materials | Loaded intel: 12 terminal locations 1399 | -8/Materials | Discovered new exit (range 13) 1491 | -8/Materials | Core integrity fell below 50% 1497 | -8/Materials | Core integrity fell below 20% 1499 | -8/Materials | Destroyed by H-61 Shepherd with Heavy Assault Cannon Last Messages --------------- 01473_ Penetrated by Slug. 01473_ Lgt. Treads destroyed. 01473_ Axe follow-up attack on H-61 Shepherd. 01474_ VSS Leg destroyed. 01474_ Knocked back. 01478_ Penetrated by Slug. 01479_ Knocked back. 01481_ Penetrated by Slug. 01487_ K-01 Serf destroyed. 01488_ Aluminum Leg destroyed. 01489_ Reflective Plating destroyed. 01489_ Hrd. Light Armor Plating destroyed. 01489_ Knocked back. 01490_ Penetrated by Slug. 01490_ Scythe destroyed. 01493_ Penetrated by Slug. 01493_ Actuator Array destroyed. 01494_ Knocked back. 01496_ Penetrated by Slug. 01499_ Slug penetrates Terminal. Map ----- +----------------------------------------------------+ | ??????????????????????????????????????????????? | | ??????????????????????????????????????????????? | | ??????????????????????????????????????????????? | | ??????????????????????????????????????????????? | | ??????????????????????????????????????????????? | | ??????????????????????? ??????????????????????? | | ??????????????????????? ###???????????????????? | | ??????????????????????# #???????????????????? | | ??????????????????????# +???????????????????? | | ????????????????#?????# #???????????????????? | | ????????????????! ????# #???????????????????? | | ???????????????!! ????# #???????????????????? | | ??????????????? ???# #???????????????????? | | ??????????????? "" ???# #####+######????????? | | ??????????????# "Y ??# #????????? | | ??????????????# "" !??# < ?????????? | | ????????? ????? ### ??????????? | | ????????? ####+#### ###########??? | | ???????? # ! ! #??? | | ???????? s a #! / ! #??? | | ???????? ss """ [+% = #??? | | ???????????????#######s = "" *#[ #??? | | ?????????????????????#% %*=%! ########+##??? | | ????????????????????##! = % ##?????# #???? | | ????????????????????%# % h % #?????# #???? | | ???????????????????### % @ #?????# #???? | | ?????????????????????# "H #?????# #???? | | ?????????????????????# #?????# #???? | | ?????????????????????# ####### #???? | | ?????????????????????##"""T"""##### #???? | | ??????????????????????#########???# #######???? | | ?????"""??????????????????????????# #?????????? | | ?????"T"??????????????????????????# #?????????? | | ??????????????????????????????????# #?????????? | | ???????????????????????????????# ########### | | ???????????????????????????????# ## /# | | ???????????????????????????????# ## # | | ???????????????????############# ## # | | ########???????????# + # """ # | | # """ #???????????# #### + """"" # | | # "T" #???????????# """ #??# # """"" # | | #% #???????????# """"" #??# # """"" # | | # #???????????# """"" #??# # """ # | | # #???????????# """"" #??# # # | | # """ #???????????# """ #??# ########## | | # """ #???????????# #??# ########## | | # """ #???????????# !! #??# ## [ # | | # ######??????#####+####?## ## # | | + """ # ########## %[##### # # | | # """ + % # ] # | +----------------------------------------------------+ Best States ------------- Heat Dissipation 31 Energy Generation 15 Energy Capacity 265 Matter Stores 300 Matter Capacity 300 Sight Range 21 Terrain Scan Range 16 Terrain Scan Density 10 Armor Coverage 525 Resistance: TH 10 Evasion (%) 55 Targeting Accuracy 8 Recoil Reduction 2 Offensive Hacking 10 Item Schematics ----------------- None Robot Schematics ------------------ None Fabricated ------------ Nothing Repaired ---------- Nothing Studied --------- None Alien Tech Used ----------------- None Achievements -------------- None Challenges ------------ None Game ------ Seed DerelictCompositeClaymores Manual? 0 Play Time 00:19:25 Cumulative 71.0 hours Start 2026.07.13 @ 17:58:19 End 2026.07.13 @ 18:16:55 Sessions 1 Manual Loads 0 Difficulty Rogue Special Mode None Game No. 81 Rogue 65 Adventurer 16 Explorer 0 Win Type - Total 1 Types 1/0/0/0/0/0/0/0/0/0 Lore% 54 Gallery% 50 Achievement% 35 Wizard Run 0 Options --------- Layout 1 ASCII 0 Keyboard 1 Movement Vi Keybinds 0 Fullscreen 1 Font 24/Tamsyn Map View 50x35 Zoom Use 0% Tactical HUD 1 Map Filters NONE Filters NONE Steam 1 RUN: b337675f-d5a8-4460-a6da-65e185e5c399